Workbook

Sheet BudPosP
A1: %,FBUSINESS_UNIT,VUCF01,FFUND_CODE,TFUNDCODE_ALL,NPROJ | B1: %,ATF,FACCOUNT,UACCOUNT | C1: %,ATT,FDESCR,UDESCR | E1: %,LACTUALS,UPOSTED_TOTAL_AMT,SPER | G1: %,LCH_PGRT_BD,UPOSTED_TOTAL_AMT,SFXLTD,R,FCURRENCY_CD,VUSD | I1: %,LACTUALS,UPOSTED_TOTAL_AMT,SFXLTD | K1: %,LCC_DET_ENC,UPOSTED_TOTAL_AMT,SFXLTD | M1: %,LCC_DET_PRE,UPOSTED_TOTAL_AMT,SFXLTD | O1: %,C | P1: %,C
C2: =RTT -> Budget Position | Q2: Budget Position | R2: UCFPROJS | S2: FX_GL_GM_BUDGPOSP | T2: 2020-06-30 | U2: 2020 | V2: 20 | W2: 18358A06 | X2: PA-FCI-The New First Line of D
C3: ="As of: "& TEXT(ASD,"mmmm dd, yyyy") -> As of: June 30, 2020
C4: =SFV&" "&SFD -> 18358A06 PA-FCI-The New First Line of D
E6: Current Period | G6: Budget | I6: Life to Date | K6: Encumb | M6: Pre- | O6: Balance
E7: Expenditures | G7: Control | I7: Expenditures*** | M7: Encumb | O7: Available
B9: Account | C9: Description
B10: Salary
A11: %,V711000 | B11: 711000 | C11: Salary & Fringe Benefits | E11: 0 | G11: 285933 | I11: 0 | K11: 0 | M11: 0 | O11: =IF(P11="N",G11-(I11+K11+M11),IF(P11="F",G11-(I11+K11+M11)," ")) ->  | P11: =IF(MID(A11,3,1)="N", "N",IF(MID(A11,3,1)="F","F"," ")) -> 
A12: %,V711102 | B12: 711102 | C12: FACULTY 9 MONTH | E12: 18838.87 | G12: 0 | I12: 22238.88 | K12: 0 | M12: 0
A13: %,V711103 | B13: 711103 | C13: FACULTY 12 MONTH | E13: 0 | G13: 0 | I13: 849.36 | K13: 0 | M13: 0
A14: %,V711201 | B14: 711201 | C14: ADMIN AND PROF | E14: 0 | G14: 0 | I14: 250.4 | K14: 0 | M14: 0
A15: %,V711610 | B15: 711610 | C15: FRINGE BENEFIT EXPENSE | E15: 5327.27 | G15: 0 | I15: 6609.74 | K15: 0 | M15: 0
A16: %,FACCOUNT,TCC_ACCT_NEXT_GEN,XDYYNYY01,N711000 | B16: 711000 | C16: Salary & Fringe Benefits | E16: 24166.14 | G16: 285933 | I16: 29948.38 | K16: 0 | M16: 0 | O16: =IF(P16="N",G16-(I16+K16+M16),IF(P16="F",G16-(I16+K16+M16)," ")) -> 255984.62 | P16: =IF(MID(A16,3,1)="N", "N",IF(MID(A16,3,1)="F","F"," ")) -> F
A17: %,V712101 | B17: 712101 | C17: TEMPORARY EMPLOYMENT | E17: 2550 | G17: 0 | I17: 23825 | K17: 0 | M17: 0 | O17: =IF(P17="N",G17-(I17+K17+M17),IF(P17="F",G17-(I17+K17+M17)," ")) ->  | P17: =IF(MID(A17,3,1)="N", "N",IF(MID(A17,3,1)="F","F"," ")) -> 
A18: %,V712104 | B18: 712104 | C18: TEMP EMP-POST DOCTORAL BENEFIT | E18: 12364.55 | G18: 0 | I18: 25544.66 | K18: 0 | M18: 0
A19: %,V712401 | B19: 712401 | C19: GRADUATE ASSISTANTS | E19: 6848.32 | G19: 0 | I19: 16669.53 | K19: 0 | M19: 0
A20: %,V712402 | B20: 712402 | C20: GRADUATE ASST INSTRUCTION | E20: 0 | G20: 0 | I20: 581.01 | K20: 0 | M20: 0
A21: %,V712610 | B21: 712610 | C21: FRINGE BENEFIT EXPENSE OPS | E21: 3163.18 | G21: 0 | I21: 8823.87 | K21: 0 | M21: 0
A22: %,FACCOUNT,TCC_ACCT_NEXT_GEN,XDYYNYY01,N712000 | B22: 712000 | C22: Other Personal Svcs Salary | E22: 24926.05 | G22: 0 | I22: 75444.07 | K22: 0 | M22: 0 | O22: =IF(P22="N",G22-(I22+K22+M22),IF(P22="F",G22-(I22+K22+M22)," ")) -> -75444.07 | P22: F
A23: %,C | C23: Total Salary | E23: =E16+E22 -> 49092.19 | F23: =F16+F22 -> 0 | G23: 285933 | H23: 0 | I23: 105392.45 | J23: 0 | K23: 0 | L23: 0 | M23: 0 | N23: 0 | O23: 180540.55 | P23: =IF(MID(A23,3,1)="N", "N",IF(MID(A23,3,1)="F","F"," ")) -> 
B24: Others
A25: %,FACCOUNT,TCC_ACCT_NEXT_GEN,XDYYNYY01,N713000 | B25: 713000 | C25: Consulting | E25: 0 | G25: 0 | I25: 0 | K25: 0 | M25: 0 | O25: =IF(P25="N",G25-(I25+K25+M25),IF(P25="F",G25-(I25+K25+M25)," ")) -> 0 | P25: =IF(MID(A25,3,1)="N", "N",IF(MID(A25,3,1)="F","F"," ")) -> F
A26: %,V713900 | B26: 713900 | C26: Subcontracts | E26: 0 | G26: 597715 | I26: 0 | K26: 0 | M26: 0 | O26: =IF(P26="N",G26-(I26+K26+M26),IF(P26="F",G26-(I26+K26+M26)," ")) ->  | P26: =IF(MID(A26,3,1)="N", "N",IF(MID(A26,3,1)="F","F"," ")) -> 
A27: %,V713958 | B27: 713958 | C27: SUBCONTR AGMT s.t. OH-RESEARCH | E27: 0 | G27: 0 | I27: 0 | K27: 200000 | M27: 0
A28: %,V713959 | B28: 713959 | C28: SUBCONTR AGMT not s.t. OH-RSCH | E28: 0 | G28: 0 | I28: 0 | K28: 275746 | M28: 0
A29: %,FACCOUNT,TCC_ACCT_NEXT_GEN,XDYYNYY01,N713900 | B29: 713900 | C29: Subcontracts | E29: 0 | G29: 597715 | I29: 0 | K29: 475746 | M29: 0 | O29: =IF(P29="N",G29-(I29+K29+M29),IF(P29="F",G29-(I29+K29+M29)," ")) -> 121969 | P29: F
A30: %,V726000 | B30: 726000 | C30: Travel | E30: 0 | G30: 12936 | I30: 0 | K30: 0 | M30: 0 | O30: =IF(P30="N",G30-(I30+K30+M30),IF(P30="F",G30-(I30+K30+M30)," ")) ->  | P30: =IF(MID(A30,3,1)="N", "N",IF(MID(A30,3,1)="F","F"," ")) -> 
A31: %,V726101 | B31: 726101 | C31: TRAVEL IN STATE | E31: 0 | G31: 0 | I31: 0 | K31: 0 | M31: 0
A32: %,FACCOUNT,TCC_ACCT_NEXT_GEN,XDYYNYY01,N726000 | B32: 726000 | C32: Travel | E32: 0 | G32: 12936 | I32: 0 | K32: 0 | M32: 0 | O32: 12936 | P32: F
A33: %,FACCOUNT,TCC_ACCT_NEXT_GEN,XDYYNYY01,N750000 | B33: 750000 | C33: Equipment | E33: 0 | G33: 0 | I33: 0 | K33: 0 | M33: 0 | O33: 0 | P33: F
A34: %,FACCOUNT,TCC_ACCT_NEXT_GEN,XDYYNYY01,N774100 | B34: 774100 | C34: Stipends | E34: 0 | G34: 0 | I34: 0 | K34: 0 | M34: 0 | O34: 0 | P34: F
A35: %,V774000 | B35: 774000 | C35: Tuition | E35: 0 | G35: 20540 | I35: 0 | K35: 0 | M35: 0 | O35: =IF(P35="N",G35-(I35+K35+M35),IF(P35="F",G35-(I35+K35+M35)," ")) ->  | P35: =IF(MID(A35,3,1)="N", "N",IF(MID(A35,3,1)="F","F"," ")) -> 
A36: %,V774107 | B36: 774107 | C36: STUDENT AWARDS | E36: 0 | G36: 0 | I36: 4689.4 | K36: 0 | M36: 0
A37: %,FACCOUNT,TCC_ACCT_NEXT_GEN,XDYYNYY01,N774000 | B37: 774000 | C37: Tuition | E37: 0 | G37: 20540 | I37: 4689.4 | K37: 0 | M37: 0 | O37: 15850.6 | P37: F
A38: %,V713999 | B38: 713999 | C38: INDEPENDENT CONTRACTORS SVCS | E38: 0 | G38: 0 | I38: 4900 | K38: 0 | M38: 0 | O38: =IF(P38="N",G38-(I38+K38+M38),IF(P38="F",G38-(I38+K38+M38)," ")) ->  | P38: =IF(MID(A38,3,1)="N", "N",IF(MID(A38,3,1)="F","F"," ")) -> 
A39: %,V720000 | B39: 720000 | C39: Other Direct Expenses | E39: 0 | G39: 33034 | I39: 0 | K39: 0 | M39: 0
A40: %,V734299 | B40: 734299 | C40: SUPPLIES WO | E40: 0 | G40: 0 | I40: 17 | K40: 0 | M40: 0
A41: %,V749301 | B41: 749301 | C41: DUES/MEMBERSHIPS | E41: 127.98 | G41: 0 | I41: 191.49 | K41: 0 | M41: 0
A42: %,V755005 | B42: 755005 | C42: COMP EQUIP/SFTWR $1-$999 | E42: 0 | G42: 0 | I42: 41.51 | K42: 0 | M42: 0
A43: %,FACCOUNT,TCC_ACCT_NEXT_GEN,XDYYNYY01,N720000 | B43: 720000 | C43: Other Direct Expenses | E43: 127.98 | G43: 33034 | I43: 5150 | K43: 0 | M43: 0 | O43: 27884 | P43: F
A44: %,C | C44: Total Others | E44: =+E25+E29+E32+E33+E34+E37+E43 -> 127.98 | F44: =+F25+F29+F32+F33+F34+F37+F43 -> 0 | G44: 664225 | H44: 0 | I44: 9839.4 | J44: 0 | K44: 475746 | L44: 0 | M44: 0 | N44: 0 | O44: 178639.6
A45: %,C | C45: Direct | E45: =+E23+E44 -> 49220.17 | F45: =+F23+F44 -> 0 | G45: 950158 | H45: 0 | I45: 115231.85 | J45: 0 | K45: 475746 | L45: 0 | M45: 0 | N45: 0 | O45: 359180.15
B46: Indirect
A47: %,V782000 | B47: 782000 | C47: Facilities & Admin (Overhead) | E47: 0 | G47: 260632 | I47: 0 | K47: 0 | M47: 0 | O47: =IF(P47="N",G47-(I47+K47+M47),IF(P47="F",G47-(I47+K47+M47)," ")) ->  | P47: =IF(MID(A47,3,1)="N", "N",IF(MID(A47,3,1)="F","F"," ")) -> 
A48: %,V782102 | B48: 782102 | C48: TSFR TO OVERHEAD | E48: 24117.87 | G48: 0 | I48: 54165.78 | K48: 0 | M48: 0
A49: %,FACCOUNT,TCC_ACCT_NEXT_GEN,XDYYNYY01,N782000 | B49: 782000 | C49: Total Indirect | E49: 24117.87 | G49: 260632 | I49: 54165.78 | K49: 0 | M49: 0 | O49: =IF(P49="N",G49-(I49+K49+M49),IF(P49="F",G49-(I49+K49+M49)," ")) -> 206466.22 | P49: =IF(MID(A49,3,1)="N", "N",IF(MID(A49,3,1)="F","F"," ")) -> F
A51: %,C | C51: Total | E51: =E45+E49 -> 73338.04 | G51: =G45+G49 -> 1210790 | I51: =I45+I49 -> 169397.63 | J51: =J45+J49+#REF!+#REF!+#REF! ->  | K51: =K45+K49 -> 475746 | L51: =L45+L49+#REF!+#REF!+#REF! ->  | M51: =M45+M49 -> 0 | O51: =G51-(I51+K51+M51) -> 565646.37
A53: %,V611020 | B53: 611020 | C53: PRIVATE GRANTS | E53: 0 | G53: 0 | I53: 1210790 | K53: 0 | M53: 0
A54: %,R,FACCOUNT,TCC_ACCT_NEXT_GEN,XLYNNYY05,ELEVEL2,NREVNUE | C54: Revenues | E54: 0 | G54: 0 | I54: 1210790 | K54: 0 | M54: 0
A56: %,V155001 | B56: 155001 | C56: AR-CONTRACTS & GRANTS | E56: 0 | G56: 0 | I56: 0 | K56: 0 | M56: 0
A57: %,V311000 | B57: 311000 | C57: ACCOUNTS PAYABLE | E57: 0 | G57: 0 | I57: 0 | K57: 0 | M57: 0
A58: %,V321001 | B58: 321001 | C58: ACC SAL PAY-EE TAXES WITHHELD | E58: 0 | G58: 0 | I58: 0 | K58: 0 | M58: 0
A59: %,V321002 | B59: 321002 | C59: ACC SAL PAY-EE RETIRE CONTRIB | E59: 0 | G59: 0 | I59: 0 | K59: 0 | M59: 0
A60: %,V321003 | B60: 321003 | C60: ACC SAL PAY-EE STATE BENEFITS | E60: 0 | G60: 0 | I60: 0 | K60: 0 | M60: 0
A61: %,V321010 | B61: 321010 | C61: ACC SAL PAY-EE UNION DUES | E61: 0 | G61: 0 | I61: 0 | K61: 0 | M61: 0
A62: %,FACCOUNT,TCC_ACCT_NEXT_GEN,XLYNNYY05,ELEVEL2,NOTHBAL | C62: Other Balance Sheet Accounts | E62: 0 | G62: 0 | I62: 0 | K62: 0 | M62: 0
A64: %,V112000 | B64: 112000 | C64: CASH IN BANK | E64: -73338.04 | G64: 0 | I64: 1041392.37 | K64: 0 | M64: 0
A65: %,V112001 | B65: 112001 | C65: CASH INTERDEPARTMENTAL TFRS | E65: 0 | G65: 0 | I65: 0 | K65: 0 | M65: 0
A66: %,FACCOUNT,TCC_ACCT_NEXT_GEN,XLYNNYY05,ELEVEL2,NCASH | C66: Cash | E66: -73338.04 | G66: 0 | I66: 1041392.37 | K66: 0 | M66: 0
C68: Calculated Cash | E68: =E54-E62-E51 -> -73338.04 | I68: =I54-I62-I51 -> 1041392.37
B70: *** | C70: May not agree with online budget inquiry page
